fUST/lending_fUST_20240910
["ID","MTS","AMOUNT","RATE_DAILY","PERIOD"]
[337649047,1725911441859,-511.00541296,0.00031176,2]
[337649048,1725911441872,-500.0,0.00031176,2]
[337649049,1725911441882,-500.0,0.00031176,2]
[337649050,1725911441892,-500.0,0.00031176,2]
[337649051,1725911441901,-500.0,0.00031176,2]
[337649052,1725911441912,-500.0,0.00031176,2]
[337649053,1725911441922,-553.7358282,0.00031176,2]
[337649054,1725911441932,-500.0,0.00031176,2]
[337649055,1725911441942,-500.0,0.00031176,2]
[337649056,1725911441954,-339.29286175,0.00031176,2]
[337649057,1725911441966,-500.0,0.00031176,2]
[337649058,1725911441975,-500.0,0.00031176,2]
[337649059,1725911441984,-500.0,0.00031176,2]
[337649060,1725911441994,-500.0,0.00031176,2]
[337649061,1725911442003,-500.0,0.00031176,2]
[337649062,1725911442013,-500.0,0.00031176,2]
[337649063,1725911442022,-500.0,0.00031176,2]
[337649064,1725911442032,-500.0,0.00031176,2]
[337649065,1725911442041,-500.0,0.00031176,2]
[337649066,1725911442051,-500.0,0.00031176,2]
[337649067,1725911442062,-500.0,0.00031176,2]
[337649068,1725911442073,-212.86892283,0.00031177,2]
[337649069,1725911442082,-338.99694885,0.00031177,2]
[337649070,1725911442092,-500.0,0.00031177,2]
[337649071,1725911442102,-500.0,0.00031177,2]
[337649072,1725911442111,-500.0,0.00031177,2]
[337649073,1725911442122,-374.11413164,0.00031177,2]
[337649074,1725911442132,-177267.19120928,0.00031178,4]
[337649150,1725911446631,-13588.51217237,0.00031178,4]
[337649203,1725912635009,-250.0,0.00025907,2]
[337649205,1725912635019,-250.0,0.00025978,2]
[337649207,1725912635028,-9784.85871894,0.00026005,2]
[337649209,1725912635037,-250.0,0.00026049,2]
[337649211,1725912635047,-180.3900915,0.00026105,2]
[337649213,1725912635057,-250.0,0.0002612,2]
[337649215,1725912635066,-3000.0,0.00026152,2]
[337649217,1725912635076,-250.0,0.00026191,2]
[337649218,1725912635086,-250.0,0.00026262,2]
[337649220,1725912635095,-250.0,0.00026333,2]
[337649222,1725912635105,-250.0,0.00026404,2]
[337649224,1725912635115,-250.0,0.00026475,2]
[337649225,1725912635124,-250.0,0.00026546,2]
[337649227,1725912635133,-250.0,0.00026617,2]
[337649228,1725912635143,-250.0,0.00026688,2]
[337649230,1725912635153,-250.0,0.00026759,2]
[337649232,1725912635163,-250.0,0.00026831,2]
[337649234,1725912635173,-250.0,0.00026902,2]
[337649236,1725912635182,-250.0,0.00026973,2]
[337649238,1725912635192,-250.0,0.00027044,2]
[337649240,1725912635203,-1084.586894,0.00027057,2]
[337649243,1725912635216,-250.0,0.00027065,2]
[337649245,1725912635228,-250.0,0.00027115,2]
[337649247,1725912635239,-250.0,0.00027186,2]
[337649248,1725912635248,-24900.0,0.00027195,2]
[337649250,1725912635258,-250.0,0.00027257,2]
[337649252,1725912635268,-369.826767,0.00027483,2]
[337649254,1725912635277,-369.826767,0.0002749,2]
[337649256,1725912635286,-369.826767,0.00027498,2]
[337649258,1725912635296,-369.826767,0.00027505,2]
[337649260,1725912635305,-369.826767,0.00027512,2]
[337649262,1725912635314,-369.826767,0.00027519,2]
[337649264,1725912635324,-369.826767,0.00027527,2]
[337649265,1725912635334,-369.826767,0.00027534,2]
[337649266,1725912635343,-369.826767,0.00027541,2]
[337649267,1725912635353,-369.826767,0.00027548,2]
[337649268,1725912635362,-369.826767,0.00027555,2]
[337649269,1725912635372,-369.826767,0.00027563,2]
[337649270,1725912635381,-369.826767,0.0002757,2]
[337649271,1725912635391,-369.826767,0.00027577,2]
[337649272,1725912635400,-369.826767,0.00027584,2]
[337649273,1725912635412,-369.826767,0.00027592,2]
[337649274,1725912635424,-369.826767,0.00027599,2]
[337649275,1725912635436,-369.826767,0.00027606,2]
[337649276,1725912635447,-369.826767,0.00027613,2]
[337649277,1725912635463,-369.826767,0.00027621,2]
[337649278,1725912635481,-185.964711,0.00028056,2]
[337649279,1725912635497,-206.56678937,0.00029519,2]
[337649280,1725912635510,-187.12011987,0.000298,2]
[337649281,1725912635525,-166.0,0.0003,2]
[337649282,1725912635541,-1500.0,0.0003,2]
[337649283,1725912635556,-1500.0,0.00030364,2]
[337649284,1725912635571,-153.0,0.00030411,2]
[337649285,1725912635587,-153.0,0.00030411,2]
[337649286,1725912635600,-153.0,0.00030411,2]
[337649287,1725912635615,-153.0,0.00030411,2]
[337649288,1725912635631,-153.0,0.00030411,2]
[337649289,1725912635647,-153.0,0.00030411,2]
[337649290,1725912635659,-153.0,0.00030411,2]
[337649291,1725912635672,-153.0,0.00030411,2]
[337649292,1725912635685,-421.32773532,0.00030425,2]
[337649307,1725912638587,-665.00000032,0.00030425,2]
[337649315,1725912638655,-489.33418964,0.00030425,2]
[337649317,1725912638666,-1457.65171937,0.00030425,2]
[337649319,1725912638678,-2191.0205012,0.00030425,2]
[337649321,1725912638688,-1500.0,0.00030727,2]
[337649323,1725912638697,-5224.33414586,0.00030781,2]
[337649325,1725912638707,-927.29974157,0.0003103,2]
[337649327,1725912638719,-927.29974154,0.00031031,2]
[337649330,1725912638733,-927.29974154,0.00031032,2]
[337649332,1725912638743,-927.29974154,0.00031032,2]
[337649334,1725912638753,-927.29974154,0.00031033,2]
[337649336,1725912638763,-315.25,0.0003104,3]
[337649338,1725912638775,-24262.95556331,0.0003105,120]
[337649381,1725912640641,-11466.3629618,0.0003105,120]
[337649382,1725912640651,-1500.0,0.00031091,2]
[337649383,1725912640661,-819.12680845,0.00031111,90]
[337649384,1725912640671,-228.27028467,0.00031129,2]
[337649385,1725912640680,-500.0,0.00031129,2]
[337649386,1725912640689,-500.0,0.00031129,2]
[337649387,1725912640698,-500.0,0.00031129,2]
[337649388,1725912640707,-500.0,0.00031129,2]
[337649389,1725912640717,-500.0,0.00031129,2]
[337649390,1725912640730,-500.0,0.00031129,2]
[337649391,1725912640739,-500.0,0.00031129,2]
[337649392,1725912640748,-500.0,0.00031129,2]
[337649393,1725912640758,-500.0,0.00031129,2]
[337649394,1725912640767,-500.0,0.00031129,2]
[337649395,1725912640778,-500.0,0.00031129,2]
[337649396,1725912640787,-500.0,0.00031129,2]
[337649397,1725912640796,-500.0,0.00031129,2]
[337649398,1725912640807,-500.0,0.00031129,2]
[337649399,1725912640816,-500.0,0.00031129,2]
[337649400,1725912640825,-500.0,0.00031129,2]
[337649401,1725912640835,-500.0,0.00031129,2]
[337649402,1725912640844,-500.0,0.00031129,2]
[337649403,1725912640853,-500.0,0.00031129,2]
[337649404,1725912640862,-500.0,0.00031129,2]
[337649405,1725912640871,-500.0,0.00031129,2]
[337649406,1725912640881,-500.0,0.00031129,2]
[337649407,1725912640891,-500.0,0.00031129,2]
[337649408,1725912640902,-500.0,0.00031129,2]
[337649409,1725912640912,-500.0,0.00031129,2]
[337649410,1725912640923,-500.0,0.00031129,2]
[337649411,1725912640934,-500.0,0.00031129,2]
[337649412,1725912640944,-500.0,0.00031129,2]
[337649413,1725912640955,-500.0,0.00031129,2]
[337649414,1725912640964,-500.0,0.00031129,2]
[337649415,1725912640974,-500.0,0.00031129,2]
[337649416,1725912640983,-500.0,0.00031129,2]
[337649417,1725912640993,-511.00541296,0.00031129,2]
[337649418,1725912641002,-500.0,0.00031129,2]
[337649419,1725912641012,-500.0,0.00031129,2]
[337649420,1725912641021,-500.0,0.00031129,2]
[337649421,1725912641030,-500.0,0.00031129,2]
[337649422,1725912641040,-500.0,0.00031129,2]
[337649423,1725912641049,-500.0,0.00031129,2]
[337649424,1725912641057,-500.0,0.00031129,2]
[337649425,1725912641066,-500.0,0.00031129,2]
[337649426,1725912641076,-500.0,0.00031129,2]
[337649427,1725912641085,-500.0,0.00031129,2]
[337649428,1725912641094,-500.0,0.00031129,2]
[337649429,1725912641103,-500.0,0.00031129,2]
[337649430,1725912641112,-553.7358282,0.00031129,2]
[337649431,1725912641122,-500.0,0.00031129,2]
[337649432,1725912641134,-500.0,0.00031129,2]
[337649433,1725912641143,-500.0,0.00031129,2]
[337649434,1725912641153,-500.0,0.00031129,2]
[337649435,1725912641163,-500.0,0.00031129,2]
[337649436,1725912641172,-500.0,0.00031129,2]
[337649437,1725912641181,-500.0,0.00031129,2]
[337649438,1725912641191,-500.0,0.00031129,2]
[337649439,1725912641200,-221.57322046,0.00031129,2]
[337649440,1725912641209,-500.0,0.00031129,2]
[337649441,1725912641218,-500.0,0.00031129,2]
[337649442,1725912641230,-500.0,0.00031129,2]
[337649443,1725912641240,-500.0,0.00031129,2]
[337649444,1725912641249,-500.0,0.00031129,2]
[337649445,1725912641259,-500.0,0.00031129,2]
[337649446,1725912641269,-500.0,0.00031129,2]
[337649447,1725912641278,-500.0,0.00031129,2]
[337649448,1725912641287,-500.0,0.00031129,2]
[337649449,1725912641297,-500.0,0.0003113,2]
[337649450,1725912641307,-212.86892283,0.0003113,2]
[337649451,1725912641316,-338.99694885,0.0003113,2]
[337649452,1725912641326,-374.11413164,0.0003113,2]
[337649453,1725912641335,-500.0,0.0003113,2]
[337649454,1725912641344,-500.0,0.0003113,2]
[337649455,1725912641353,-141562.125924,0.00031131,4]
[337649456,1725912641362,-5478.37711785,0.00031131,4]
[337649457,1725912641371,-39672.91249284,0.00031133,4]
[337649466,1725912643596,-165.68649259,0.00031133,4]
[337649504,1725913725273,6357.24423814,0.0002061,2]
[337649512,1725913782673,185.903975,0.0002405,2]
[337649571,1725913831709,-185.903975,0.00025316,2]
[337649573,1725913831719,-340.5100862,0.00025508,2]
[337649575,1725913831729,-2132.4617399,0.00025516,2]
[337649576,1725913831739,-1692.04875786,0.00025622,2]
[337649578,1725913831753,-1307.95124214,0.00025622,2]
[337649579,1725913831763,-250.0,0.00025652,2]
[337649580,1725913831773,-250.0,0.00025723,2]
[337649581,1725913831783,-250.0,0.00025793,2]
[337649582,1725913831793,-250.0,0.00025864,2]
[337649583,1725913831803,-250.0,0.00025934,2]
[337649584,1725913831812,-250.0,0.00026004,2]
[337649585,1725913831823,-250.0,0.00026075,2]
[337649586,1725913831833,-250.0,0.00026145,2]
[337649587,1725913831843,-250.0,0.00026215,2]
[337649588,1725913831853,-250.0,0.00026286,2]
[337649589,1725913831862,-250.0,0.00026356,2]
[337649590,1725913831872,-250.0,0.00026426,2]
[337649591,1725913831882,-166.51447,0.00026446,2]
[337649592,1725913831892,-166.51447,0.0002649,2]
[337649593,1725913831902,-250.0,0.00026497,2]
[337649594,1725913831912,-166.51447,0.00026534,2]
[337649595,1725913831921,-793.3171999,0.00026538,2]
[337649596,1725913831931,-250.0,0.00026567,2]
[337649597,1725913831940,-166.51447,0.00026578,2]
[337649598,1725913831950,-185.903975,0.00026582,2]
[337649599,1725913831959,-250.0,0.00026593,2]
[337649600,1725913831969,-656.493517,0.00026624,2]
[337649601,1725913831978,-250.0,0.00026637,2]
[337649602,1725913831988,-267.2778074,0.00026655,2]
[337649603,1725913831997,-232.4100663,0.00026655,2]
[337649604,1725913832008,-200.510964,0.0002667,2]
[337649605,1725913832017,-250.0,0.00026708,2]
[337649606,1725913832027,-24437.45123674,0.00026767,2]
[337649612,1725913837664,-453.34579587,0.00026767,2]
[337649627,1725913839822,-9.20296739,0.00026767,2]
[337649628,1725913839831,-250.0,0.00026778,2]
[337649629,1725913839840,-250.0,0.00026849,2]
[337649630,1725913839849,-250.0,0.00026919,2]
[337649631,1725913839859,-250.0,0.00026989,2]
[337649632,1725913839869,-500.0,0.00029773,5]
[337649633,1725913839878,-500.0,0.00029773,2]
[337649634,1725913839887,-500.0,0.00029773,5]
[337649635,1725913839896,-500.0,0.00029773,5]
[337649636,1725913839905,-228.32,0.0002978,3]
[337649637,1725913839915,-685.01,0.0002978,3]
[337649638,1725913839924,-500.0,0.00029789,2]
[337649639,1725913839933,-212.86892283,0.00029789,2]
[337649640,1725913839943,-338.99694885,0.00029789,2]
[337649641,1725913839953,-374.11413164,0.00029789,2]
[337649642,1725913839963,-500.0,0.00029789,2]
[337649643,1725913839972,-500.0,0.00029789,2]
[337649644,1725913839981,-500.0,0.00029789,2]
[337649645,1725913839991,-324.36349148,0.00029789,2]
[337649646,1725913840000,-500.0,0.00029789,2]
[337649647,1725913840009,-500.0,0.00029789,2]
[337649648,1725913840018,-500.0,0.00029789,2]
[337649649,1725913840028,-500.0,0.00029789,2]
[337649650,1725913840037,-500.0,0.00029789,2]
[337649651,1725913840046,-500.0,0.00029789,2]
[337649652,1725913840055,-500.0,0.00029789,2]
[337649653,1725913840068,-500.0,0.00029789,2]
[337649654,1725913840079,-358.10080994,0.00029789,2]
[337649655,1725913840088,-500.0,0.00029789,2]
[337649656,1725913840098,-284.66819536,0.00029789,2]
[337649657,1725913840109,-500.0,0.00029789,2]
[337649658,1725913840120,-500.0,0.00029789,2]
[337649659,1725913840130,-500.0,0.00029789,2]
[337649660,1725913840142,-500.0,0.00029789,2]
[337649661,1725913840153,-500.0,0.00029789,2]
[337649662,1725913840163,-500.0,0.00029789,2]
[337649663,1725913840173,-500.0,0.00029789,2]
[337649664,1725913840182,-500.0,0.00029789,2]
[337649665,1725913840191,-500.0,0.00029789,2]
[337649666,1725913840201,-500.0,0.00029789,2]
[337649667,1725913840211,-500.0,0.00029789,2]
[337649668,1725913840220,-500.0,0.00029789,2]
[337649669,1725913840229,-500.0,0.00029789,2]
[337649670,1725913840238,-500.0,0.00029789,2]
[337649671,1725913840247,-500.0,0.00029789,2]
[337649672,1725913840257,-500.0,0.00029789,2]
[337649673,1725913840266,-280.05796108,0.00029789,2]
[337649674,1725913840277,-500.0,0.00029789,2]
[337649675,1725913840287,-500.0,0.00029789,2]
[337649676,1725913840296,-500.0,0.00029789,2]
[337649677,1725913840306,-500.0,0.00029789,2]
[337649678,1725913840315,-321.33628553,0.00029789,2]
[337649679,1725913840328,-178.66371447,0.00029789,2]
[337649680,1725913840337,-500.0,0.00029789,2]
[337649681,1725913840347,-500.0,0.00029789,2]
[337649682,1725913840358,-500.0,0.00029789,2]
[337649683,1725913840368,-500.0,0.00029789,2]
[337649684,1725913840378,-500.0,0.00029789,2]
[337649685,1725913840387,-500.0,0.00029789,2]
[337649686,1725913840397,-500.0,0.00029789,2]
[337649687,1725913840406,-500.0,0.00029789,2]
[337649688,1725913840416,-500.0,0.00029789,2]
[337649689,1725913840428,-500.0,0.00029789,2]
[337649690,1725913840438,-500.0,0.00029789,2]
[337649691,1725913840447,-500.0,0.00029789,2]
[337649692,1725913840456,-500.0,0.00029789,2]
[337649693,1725913840465,-500.0,0.00029789,2]
[337649694,1725913840474,-500.0,0.00029789,2]
[337649695,1725913840483,-500.0,0.00029789,2]
[337649696,1725913840492,-500.0,0.00029789,2]
[337649697,1725913840501,-500.0,0.00029789,2]
[337649698,1725913840511,-500.0,0.00029789,2]
[337649699,1725913840521,-500.0,0.00029789,2]
[337649700,1725913840531,-500.0,0.00029789,2]
[337649701,1725913840540,-545.76238314,0.00029789,2]
[337649702,1725913840550,-545.76238314,0.00029789,2]
[337649703,1725913840744,-545.76238314,0.00029789,2]
[337649704,1725913840758,-545.76238314,0.00029789,2]
[337649705,1725913840770,-545.76238314,0.00029789,2]
[337649706,1725913840779,-545.76238314,0.00029789,2]
[337649707,1725913840789,-545.76238314,0.00029789,2]
[337649708,1725913840799,-545.76238314,0.00029789,2]
[337649709,1725913840808,-545.76238314,0.00029789,2]
[337649710,1725913840818,-545.76238314,0.00029789,2]
[337649711,1725913840828,-545.76238314,0.00029789,2]
[337649712,1725913840837,-545.76238314,0.00029789,2]
[337649713,1725913840846,-545.76238314,0.00029789,2]
[337649714,1725913840856,-545.76238314,0.00029789,2]
[337649715,1725913840865,-545.76238314,0.00029789,2]
[337649716,1725913840875,-545.76238314,0.00029789,2]
[337649717,1725913840885,-545.76238314,0.00029789,2]
[337649718,1725913840894,-545.76238314,0.00029789,2]
[337649719,1725913840904,-545.76238314,0.00029789,2]
[337649720,1725913840913,-545.76238314,0.00029789,2]
[337649721,1725913840925,-545.76238314,0.00029789,2]
[337649722,1725913840934,-545.76238314,0.00029789,2]
[337649723,1725913840943,-545.76238314,0.00029789,2]
[337649724,1725913840953,-545.76238314,0.00029789,2]
[337649725,1725913840962,-545.76238314,0.00029789,2]
[337649726,1725913840972,-545.76238314,0.00029789,2]
[337649727,1725913840981,-545.76238314,0.00029789,2]
[337649728,1725913840990,-545.76238314,0.00029789,2]
[337649729,1725913840999,-545.76238314,0.00029789,2]
[337649730,1725913841009,-545.76238314,0.00029789,2]
[337649731,1725913841018,-545.76238314,0.00029789,2]
[337649732,1725913841028,-545.76238314,0.00029789,2]
[337649733,1725913841037,-545.76238314,0.00029789,2]
[337649734,1725913841046,-545.76238314,0.00029789,2]
[337649735,1725913841056,-545.76238314,0.00029789,2]
[337649736,1725913841070,-545.76238314,0.00029789,2]
[337649737,1725913841079,-545.76238314,0.00029789,2]
[337649738,1725913841088,-545.76238314,0.00029789,2]
[337649739,1725913841097,-545.76238314,0.00029789,2]
[337649740,1725913841107,-545.76238314,0.00029789,2]
[337649741,1725913841116,-545.76238314,0.00029789,2]
[337649742,1725913841126,-547.78372527,0.00029789,2]
[337649743,1725913841135,-547.78372527,0.00029789,2]
[337649744,1725913841145,-547.78372527,0.00029789,2]
[337649745,1725913841155,-547.78372527,0.00029789,2]
[337649746,1725913841164,-547.78372527,0.00029789,2]
[337649747,1725913841174,-547.78372526,0.00029789,2]
[337649748,1725913841183,-157519.34498365,0.0002979,4]
[337649776,1725913874831,5516.65700674,0.00023562,120]
[337649783,1725914596546,5000.0,0.00025,2]
[337649789,1725914700662,302.30477158,0.00024875,6]
[337649790,1725914798097,1580.6972054,0.00024692,2]
[337649791,1725915009489,174.93215538,0.00024643,2]
[337649916,1725915039953,-250.0,0.00025215,2]
[337649917,1725915039962,-250.0,0.00025284,2]
[337649918,1725915039972,-250.0,0.00025354,2]
[337649919,1725915039981,-250.0,0.00025423,2]
[337649920,1725915039991,-250.0,0.00025492,2]
[337649921,1725915040001,-250.0,0.00025561,2]
[337649922,1725915040011,-250.0,0.0002563,2]
[337649923,1725915040020,-250.0,0.00025699,2]
[337649924,1725915040029,-250.0,0.00025768,2]
[337649925,1725915040038,-250.0,0.00025838,2]
[337649926,1725915040047,-1129.42062036,0.00025876,2]
[337649927,1725915040060,-811.90446842,0.00025876,2]
[337649928,1725915040070,-300.0,0.00025901,2]
[337649929,1725915040079,-247.21247115,0.00025901,2]
[337649930,1725915040092,-52.78752885,0.00025901,2]
[337649931,1725915040101,-11007.69234346,0.00025902,2]
[337649932,1725915040112,-8738.19440988,0.00025902,2]
[337649933,1725915040123,-5154.11324666,0.00025902,2]
[337649934,1725915040133,-250.0,0.00025907,2]
[337649935,1725915040142,-1886.565112,0.00025949,2]
[337649936,1725915040151,-250.0,0.00025976,2]
[337649937,1725915040161,-960.1772774,0.00026015,2]
[337649938,1725915040170,-250.0,0.00026045,2]
[337649939,1725915040180,-1509.4252531,0.00026048,2]
[337649940,1725915040189,-250.0,0.00026114,2]
[337649941,1725915040198,-250.0,0.00026183,2]
[337649942,1725915040207,-3000.0,0.00026223,2]
[337649943,1725915040216,-250.0,0.00026252,2]
[337649944,1725915040225,-250.0,0.00026322,2]
[337649945,1725915040234,-250.0,0.00026391,2]
[337649946,1725915040244,-250.0,0.0002646,2]
[337649947,1725915040253,-250.0,0.00026529,2]
[337649948,1725915040262,-178.691585,0.00027015,2]
[337649949,1725915040271,-1941.32508877,0.00027801,2]
[337649950,1725915040280,-153.0,0.00029315,2]
[337649951,1725915040290,-153.0,0.00029315,2]
[337649952,1725915040300,-153.0,0.00029315,2]
[337649953,1725915040309,-250.2,0.0002975,3]
[337649954,1725915040318,-750.62,0.0002975,3]
[337649955,1725915040328,-861.95,0.00029751,3]
[337649956,1725915040337,-214.88830465,0.00029759,2]
[337649957,1725915040348,-500.0,0.00029759,2]
[337649958,1725915040357,-467.85785476,0.00029759,2]
[337649959,1725915040367,-297.00089251,0.00029759,2]
[337649960,1725915040376,-500.0,0.00029759,2]
[337649961,1725915040386,-218.7027747,0.00029759,2]
[337649962,1725915040396,-500.0,0.00029759,2]
[337649963,1725915040405,-500.0,0.00029759,2]
[337649964,1725915040414,-500.0,0.00029759,2]
[337649965,1725915040423,-476.07424393,0.00029759,2]
[337649966,1725915040436,-500.0,0.00029759,2]
[337649967,1725915040446,-500.0,0.00029759,2]
[337649968,1725915040456,-500.0,0.00029759,2]
[337649969,1725915040467,-500.0,0.00029759,2]
[337649970,1725915040476,-500.0,0.00029759,2]
[337649971,1725915040486,-500.0,0.00029759,2]
[337649972,1725915040495,-500.0,0.00029759,2]
[337649973,1725915040505,-500.0,0.00029759,2]
[337649974,1725915040517,-500.0,0.00029759,2]
[337649975,1725915040528,-500.0,0.00029759,2]
[337649976,1725915040538,-500.0,0.00029759,2]
[337649977,1725915040548,-500.0,0.00029759,2]
[337649978,1725915040557,-500.0,0.00029759,2]
[337649979,1725915040566,-500.0,0.00029759,2]
[337649980,1725915040575,-500.0,0.00029759,2]
[337649981,1725915040593,-500.0,0.00029759,2]
[337649982,1725915040614,-555.06962424,0.00029759,2]
[337649983,1725915040636,-500.0,0.00029759,2]
[337649984,1725915040659,-500.0,0.00029759,2]
[337649985,1725915040684,-500.0,0.00029759,2]
[337649986,1725915040704,-500.0,0.00029759,2]
[337649987,1725915040727,-500.0,0.00029759,2]
[337649988,1725915040748,-500.0,0.00029759,2]
[337649989,1725915040767,-500.0,0.00029759,2]
[337649990,1725915040776,-500.0,0.00029759,2]
[337649991,1725915040786,-500.0,0.00029759,2]
[337649992,1725915040796,-500.0,0.00029759,2]
[337649993,1725915040806,-500.0,0.00029759,2]
[337649994,1725915040816,-500.0,0.00029759,2]
[337649995,1725915040826,-500.0,0.00029759,2]
[337649996,1725915040836,-500.0,0.00029759,2]
[337649997,1725915040846,-500.0,0.00029759,2]
[337649998,1725915040855,-500.0,0.00029759,2]
[337649999,1725915040866,-500.0,0.00029759,2]
[337650000,1725915040875,-500.0,0.00029759,2]
[337650001,1725915040885,-500.0,0.00029759,2]
[337650002,1725915040894,-500.0,0.00029759,2]
[337650003,1725915040903,-500.0,0.00029759,2]
[337650004,1725915040912,-500.0,0.00029759,2]
[337650005,1725915040925,-500.0,0.00029759,2]
[337650006,1725915040935,-500.0,0.00029759,2]
[337650007,1725915040944,-500.0,0.00029759,2]
[337650008,1725915040954,-500.0,0.00029759,2]
[337650009,1725915040963,-500.0,0.00029759,2]
[337650010,1725915040973,-500.0,0.00029759,2]
[337650011,1725915040982,-500.0,0.00029759,2]
[337650012,1725915040991,-500.0,0.00029759,2]
[337650013,1725915041001,-500.0,0.00029759,2]
[337650014,1725915041012,-500.0,0.00029759,2]
[337650015,1725915041024,-500.0,0.00029759,2]
[337650016,1725915041033,-500.0,0.00029759,2]
[337650017,1725915041043,-500.0,0.00029759,2]
[337650018,1725915041052,-500.0,0.00029759,2]
[337650019,1725915041062,-500.0,0.00029759,2]
[337650020,1725915041071,-500.0,0.00029759,2]
[337650021,1725915041080,-500.0,0.00029759,2]
[337650022,1725915041090,-500.0,0.00029759,2]
[337650023,1725915041099,-500.0,0.00029759,2]
[337650024,1725915041108,-500.0,0.00029759,2]
[337650025,1725915041118,-500.0,0.00029759,2]
[337650026,1725915041128,-500.0,0.00029759,2]
[337650027,1725915041139,-500.0,0.00029759,2]
[337650028,1725915041148,-500.0,0.00029759,2]
[337650029,1725915041158,-455.50696242,0.00029759,2]
[337650030,1725915041167,-500.0,0.00029759,2]
[337650031,1725915041177,-500.0,0.00029759,2]
[337650032,1725915041187,-500.0,0.00029759,2]
[337650033,1725915041196,-500.0,0.00029759,2]
[337650034,1725915041206,-500.0,0.00029759,2]
[337650035,1725915041217,-500.0,0.00029759,2]
[337650036,1725915041226,-500.0,0.00029759,2]
[337650037,1725915041236,-500.0,0.00029759,2]
[337650038,1725915041246,-500.0,0.00029759,2]
[337650039,1725915041256,-500.0,0.00029759,2]
[337650040,1725915041266,-133045.13682386,0.0002976,4]
[337650094,1725915590601,2665.724289,0.00024996,2]
[337650095,1725915598196,960.1772774,0.00024996,2]
[337650103,1725915851984,204.7155107,0.00024942,2]
[337650104,1725915920017,254.36438688,0.00024942,2]
[337650105,1725916137566,1509.4252531,0.00024971,2]
[337650106,1725916139010,24900.0,0.00024971,2]
[337650107,1725916171142,-351.51276274,0.0002507,2]
[337650108,1725916203483,178.691585,0.00024818,2]
[337650136,1725916234084,-2543.76,0.0002507,2]
[337650143,1725916238018,-104.72723726,0.0002507,2]
[337650144,1725916238028,-175.055022,0.00025089,2]
[337650145,1725916238038,-1722.441733,0.00025124,2]
[337650146,1725916238048,-300.0,0.00025182,2]
[337650148,1725916238058,-10973.45393874,0.00025183,2]
[337650383,1725916240314,-8176.95471606,0.00025183,2]
[337650386,1725916240325,-205.675148,0.00025414,2]
[337650388,1725916240334,-205.675148,0.00025484,2]
[337650390,1725916240344,-205.675148,0.00025553,2]
[337650392,1725916240355,-205.675148,0.00025623,2]
[337650394,1725916240364,-205.675148,0.00025693,2]
[337650396,1725916240374,-205.675148,0.00025762,2]
[337650398,1725916240383,-205.675148,0.00025832,2]
[337650400,1725916240392,-205.675148,0.00025902,2]
[337650402,1725916240402,-205.675148,0.00025971,2]
[337650404,1725916240413,-205.675148,0.00026041,2]
[337650406,1725916240423,-205.675148,0.00026111,2]
[337650408,1725916240433,-205.675148,0.00026181,2]
[337650410,1725916240443,-205.675148,0.0002625,2]
[337650412,1725916240452,-205.675148,0.0002632,2]
[337650414,1725916240462,-205.675148,0.0002639,2]
[337650416,1725916240471,-205.675148,0.00026459,2]